bitfinex-derivatives/quotes_BTCF0:USTF0_20250828
["timestamp","ask_amount","ask_price","bid_price","bid_amount"]
[1756351271257,0.14186,111920.0,111910.0,0.01984883]
[1756351271551,0.48186,111920.0,111910.0,0.01984883]
[1756351271945,0.16186,111920.0,111910.0,0.01984883]
[1756351272743,0.54157324,111920.0,111910.0,0.01984883]
[1756351273051,0.16186,111920.0,111910.0,0.01984883]
[1756351273255,0.54157324,111920.0,111910.0,0.01984883]
[1756351273450,0.16186,111920.0,111910.0,0.01984883]
[1756351273852,0.98918,111920.0,111910.0,0.01984883]
[1756351274653,0.98828,111920.0,111910.0,0.01984883]
[1756351275455,1.01445889,111920.0,111910.0,0.01984883]
[1756351275654,0.96747889,111920.0,111910.0,0.01984883]
[1756351275851,1.01461889,111920.0,111910.0,0.01984883]
[1756351278659,0.96747889,111920.0,111910.0,0.01984883]
[1756351278860,1.01461889,111920.0,111910.0,0.01984883]
[1756351279158,0.18729889,111920.0,111900.0,0.37971324]
[1756351279352,0.14089,111900.0,111890.0,0.10924289]
[1756351279553,0.14089,111900.0,111890.0,0.88636636]
[1756351280859,0.14089,111900.0,111890.0,0.53636636]
[1756351281060,0.14964588,111900.0,111890.0,0.87636636]
[1756351281664,0.14964588,111900.0,111890.0,0.53636636]
[1756351281961,0.14964588,111900.0,111890.0,0.89636636]
[1756351284462,0.14964588,111900.0,111890.0,0.53636636]
[1756351284662,0.11069588,111900.0,111890.0,0.87636636]
[1756351284859,0.14964588,111900.0,111890.0,0.87636636]
[1756351285263,0.14089,111900.0,111890.0,0.87636636]
[1756351285464,0.11804,111900.0,111890.0,0.87636636]
[1756351285856,0.11804,111900.0,111890.0,1.70340636]
[1756351286057,0.14089,111900.0,111890.0,2.13052983]
[1756351286558,0.0468626,111910.0,111900.0,0.0893583]
[1756351286757,0.1590726,111910.0,111900.0,0.94360524]
[1756351287365,0.16810443,111910.0,111900.0,0.94360524]
[1756351288068,0.16910443,111910.0,111900.0,0.94360524]
[1756351288266,0.16910443,111910.0,111900.0,0.0893583]
[1756351288470,0.16910443,111910.0,111900.0,0.94360524]
[1756351290170,0.16910443,111910.0,111900.0,0.0893583]
[1756351290371,0.16910443,111910.0,111900.0,0.94360524]
[1756351291073,0.16910443,111910.0,111900.0,0.0893583]
[1756351291272,0.16910443,111910.0,111900.0,0.85424694]
[1756351291485,0.16910443,111910.0,111900.0,0.42712347]
[1756351292978,0.18910443,111910.0,111900.0,0.42712347]
[1756351293875,0.46910443,111910.0,111900.0,0.42712347]
[1756351294176,0.45910443,111910.0,111900.0,0.42712347]
[1756351294376,0.21449659,111910.0,111900.0,0.42712347]
[1756351295381,0.0832,111900.0,111890.0,1.28379997]
[1756351295583,0.0832,111900.0,111890.0,2.02092344]
[1756351299483,0.02848,111900.0,111890.0,2.02092344]
[1756351299685,0.02848,111900.0,111890.0,2.44804691]
[1756351299984,0.05589443,111910.0,111890.0,2.53740911]
[1756351300183,0.19369708,111910.0,111900.0,0.94360524]
[1756351300387,0.19349708,111910.0,111900.0,0.94360524]
[1756351300687,0.19349708,111910.0,111900.0,1.77028524]
[1756351301083,0.19349708,111910.0,111900.0,0.42712347]
[1756351301486,0.21349708,111910.0,111900.0,0.42712347]
[1756351302280,0.02848,111900.0,111890.0,1.28360007]
[1756351302481,0.0832,111900.0,111890.0,2.06072354]
[1756351303486,0.06035,111900.0,111890.0,2.06068354]
[1756351303985,0.0832,111900.0,111890.0,2.06068354]
[1756351304288,0.06035,111900.0,111890.0,2.06068354]
[1756351305181,0.06035,111900.0,111890.0,1.71105932]
[1756351305386,0.02848,111900.0,111890.0,2.02105932]
[1756351309085,0.02848,111900.0,111890.0,1.71105932]
[1756351309290,0.06195,111900.0,111890.0,1.71105932]
[1756351309790,0.02848,111900.0,111890.0,1.71105932]
[1756351311690,0.02848,111900.0,111890.0,2.09105932]
[1756351312493,0.02848,111900.0,111890.0,1.26441932]
[1756351312686,0.06195,111900.0,111890.0,1.26441932]
[1756351312892,0.02848,111900.0,111890.0,2.09077932]
[1756351313889,0.10724,111900.0,111890.0,0.44738024]
[1756351314092,0.10724,111900.0,111890.0,1.27370024]
[1756351314093,0.81783347,111900.0,111890.0,1.27370024]
[1756351314790,0.83783347,111900.0,111890.0,1.27370024]
[1756351314990,0.83783347,111900.0,111890.0,0.44738024]
[1756351315294,1.62495694,111900.0,111890.0,0.02025677]
[1756351315595,1.19783347,111900.0,111890.0,0.02025677]
[1756351315894,0.77071,111900.0,111890.0,0.02025677]
[1756351316082,1.19783347,111900.0,111890.0,0.02025677]
[1756351317696,0.14178,111890.0,111880.0,0.42712347]
[1756351317894,0.91890347,111890.0,111880.0,0.42712347]
[1756351318294,0.06302,111880.0,111870.0,0.51650217]
[1756351318497,0.14178,111880.0,111870.0,0.51650217]
[1756351318995,0.14078,111880.0,111870.0,0.51910217]
[1756351319585,0.56790347,111880.0,111870.0,0.42972347]
[1756351319990,0.14078,111880.0,111870.0,0.42972347]
[1756351320492,0.14078,111880.0,111870.0,0.43172347]
[1756351320897,0.14078,111880.0,111870.0,0.52110567]
[1756351321196,0.14078,111880.0,111870.0,0.43172347]
[1756351322106,0.14078,111880.0,111870.0,0.52110567]
[1756351322794,0.14078,111880.0,111870.0,0.43072347]
[1756351323196,0.51078,111880.0,111870.0,0.43172347]
[1756351323497,0.93790347,111880.0,111870.0,0.43172347]
[1756351323695,0.93790347,111880.0,111870.0,0.43012347]
[1756351324401,0.93790347,111880.0,111870.0,0.42912347]
[1756351325400,0.93790347,111880.0,111870.0,0.43012347]
[1756351325898,1.20594328,111880.0,111870.0,0.002]
[1756351326299,1.20594328,111880.0,111870.0,0.42912347]
[1756351326695,1.20594328,111880.0,111870.0,0.002]
[1756351326901,1.20594328,111880.0,111870.0,0.42912347]
[1756351327702,1.20594328,111880.0,111870.0,0.003]
[1756351327892,1.20594328,111880.0,111870.0,0.43012347]
[1756351328694,1.20594328,111880.0,111870.0,0.42912347]
[1756351329501,1.20594328,111880.0,111870.0,0.43012347]
[1756351330003,0.37634981,111880.0,111870.0,0.85884694]
[1756351330200,0.40981981,111880.0,111870.0,0.85884694]
[1756351330401,0.40981981,111880.0,111870.0,0.0046]
[1756351330599,0.40981981,111880.0,111870.0,0.43172347]
[1756351331300,0.40981981,111880.0,111870.0,0.85884694]
[1756351332405,0.40981981,111880.0,111870.0,0.43172347]
[1756351335102,0.83694328,111880.0,111870.0,0.43172347]
[1756351337512,0.40981981,111880.0,111870.0,0.43172347]
[1756351338314,0.40981981,111880.0,111870.0,0.0046]
[1756351338614,0.42981981,111880.0,111870.0,0.43172347]
[1756351339108,0.85694328,111880.0,111870.0,0.0046]
[1756351339309,0.83694328,111880.0,111870.0,0.003]
[1756351339515,0.85694328,111880.0,111870.0,0.43012347]
[1756351340114,0.85694328,111880.0,111870.0,0.43172347]
[1756351340316,0.85694328,111880.0,111870.0,0.002]
[1756351340516,0.85694328,111880.0,111870.0,0.42912347]
[1756351341620,0.85694328,111880.0,111870.0,0.43012347]
[1756351342321,0.85694328,111880.0,111870.0,0.43172347]
[1756351342521,0.85694328,111880.0,111870.0,0.43012347]
[1756351343918,0.42981981,111880.0,111870.0,0.43172347]
[1756351344118,0.85694328,111880.0,111870.0,0.43172347]
[1756351344719,0.85694328,111880.0,111870.0,0.002]
[1756351344924,0.85694328,111880.0,111870.0,0.42912347]
[1756351345623,0.90694328,111880.0,111870.0,0.002]
[1756351346025,0.93173695,111880.0,111870.0,0.002]
[1756351346616,0.90694328,111880.0,111870.0,0.002]
[1756351346821,0.93174218,111880.0,111870.0,0.002]
[1756351349921,0.50461871,111880.0,111870.0,0.002]
[1756351350122,0.93174218,111880.0,111870.0,0.002]
[1756351352824,1.18174218,111880.0,111850.0,0.02105023]
[1756351353030,0.14396,111860.0,111850.0,0.02575023]
[1756351353233,0.16396,111860.0,111850.0,0.4528737]
[1756351355323,0.16396,111860.0,111850.0,0.4548737]
[1756351355728,0.17298575,111860.0,111850.0,0.0078]
[1756351355923,0.19121032,111860.0,111850.0,0.43292347]
[1756351356130,0.19121032,111860.0,111850.0,0.43492347]
[1756351357028,0.17121032,111860.0,111850.0,0.43492347]
[1756351357228,0.19121032,111860.0,111850.0,0.43492347]
[1756351357435,0.61833379,111860.0,111850.0,0.43492347]
[1756351357630,0.91833379,111860.0,111850.0,0.43392347]
[1756351357826,0.95833379,111860.0,111850.0,0.43392347]
[1756351358128,0.61833379,111860.0,111850.0,0.0098]
[1756351358328,0.59833379,111860.0,111850.0,0.43692347]
[1756351358533,1.42425379,111860.0,111850.0,0.43692347]
[1756351358732,1.73425379,111860.0,111850.0,0.43692347]
[1756351359433,1.74425379,111860.0,111850.0,0.43692347]
[1756351363339,1.79417379,111860.0,111850.0,0.43692347]
[1756351363525,1.44417379,111860.0,111850.0,0.43692347]
[1756351363834,1.79417379,111860.0,111850.0,0.43692347]
[1756351364837,1.79417379,111860.0,111850.0,0.0098]
[1756351365139,0.59833379,111860.0,111850.0,0.43692347]
[1756351365336,0.17121032,111860.0,111850.0,0.52632167]
[1756351365542,0.99656032,111860.0,111850.0,0.52632167]
[1756351365736,0.13793032,111860.0,111850.0,0.52632167]
[1756351366032,0.02725032,111860.0,111850.0,1.58344514]
[1756351366436,0.02725032,111860.0,111850.0,1.15632167]
[1756351366839,0.05551032,111860.0,111850.0,0.77632167]
[1756351367037,0.05551032,111860.0,111850.0,1.13632167]
[1756351367435,0.17037032,111860.0,111850.0,1.07909562]
[1756351367636,0.05551032,111860.0,111850.0,1.07909562]
[1756351368136,0.05551032,111860.0,111850.0,1.09909562]
[1756351368137,0.04648457,111860.0,111850.0,1.09909562]
[1756351370945,0.04648457,111860.0,111850.0,0.72909562]
[1756351371142,0.04648457,111860.0,111850.0,1.03909562]
[1756351373242,0.04648457,111860.0,111850.0,0.78909562]
[1756351374144,0.04648457,111860.0,111850.0,1.61481562]
[1756351375748,0.04648457,111860.0,111850.0,1.61473562]
[1756351375948,0.10411457,111860.0,111850.0,1.61473562]
[1756351376247,0.10411457,111860.0,111850.0,1.64473562]
[1756351376643,0.04648457,111860.0,111850.0,1.64473562]
[1756351377350,0.04648457,111860.0,111850.0,1.30473562]
[1756351377648,0.04648457,111860.0,111850.0,1.61473562]
[1756351378852,0.06212457,111860.0,111850.0,1.61469562]
[1756351379150,0.06212457,111860.0,111850.0,1.68469562]
[1756351379551,0.04648457,111860.0,111850.0,1.68469562]
[1756351380547,0.08508457,111860.0,111850.0,0.85909562]
[1756351380748,0.08508457,111860.0,111850.0,1.68465562]
[1756351381240,0.06212457,111860.0,111850.0,1.68465562]
[1756351381446,0.01822457,111860.0,111850.0,1.93465562]
[1756351381645,0.01522457,111860.0,111850.0,1.93465562]
[1756351382453,0.01522457,111860.0,111850.0,1.10909562]
[1756351382752,0.01522457,111860.0,111850.0,1.93461562]
[1756351383349,0.04348457,111860.0,111850.0,1.93461562]
[1756351383653,0.04348457,111860.0,111850.0,1.93457562]
[1756351384055,0.04348457,111860.0,111850.0,1.10909562]
[1756351384259,0.12555457,111860.0,111850.0,0.85909562]
[1756351384551,0.12555457,111860.0,111850.0,1.65457562]
[1756351384751,0.15834457,111860.0,111850.0,1.65457562]
[1756351386955,0.15834457,111860.0,111850.0,1.92017562]
[1756351387348,0.04348457,111860.0,111850.0,1.92017562]
[1756351387749,0.04348457,111860.0,111850.0,1.1902782]
[1756351387948,0.04348457,111860.0,111850.0,1.90017562]
[1756351388152,0.04348457,111860.0,111850.0,1.57017562]
[1756351388351,0.04348457,111860.0,111850.0,1.93017562]
[1756351389147,0.01522457,111860.0,111850.0,1.93017562]
[1756351390251,0.04348457,111860.0,111850.0,1.93017562]
[1756351390447,0.01522457,111860.0,111850.0,1.93017562]
[1756351391054,0.01522457,111860.0,111850.0,1.10469562]
[1756351391248,0.15834457,111860.0,111850.0,1.57001562]
[1756351391449,0.04348457,111860.0,111850.0,1.95001562]
[1756351393857,0.04348457,111860.0,111850.0,1.12469562]
[1756351394061,0.04348457,111860.0,111850.0,1.94993562]
[1756351401471,0.04348457,111860.0,111850.0,1.94977562]
[1756351401668,0.01522457,111860.0,111850.0,1.94977562]
[1756351401970,0.0002,111870.0,111860.0,0.0893902]
[1756351402172,0.02992,111880.0,111860.0,0.0893902]
[1756351402173,0.03012,111880.0,111870.0,0.0893822]
[1756351402369,0.02992,111880.0,111870.0,2.05425704]
[1756351402569,0.02992,111880.0,111870.0,1.67435962]
[1756351404574,0.02992,111880.0,111870.0,1.68351677]
[1756351404776,0.02992,111880.0,111870.0,1.68451677]
[1756351404969,0.02992,111880.0,111870.0,1.67535962]
[1756351405370,0.02892,111880.0,111870.0,1.67635962]
[1756351406176,0.03992,111880.0,111870.0,1.68622193]
[1756351406365,0.03992,111880.0,111870.0,2.06611935]
[1756351406570,0.03992,111880.0,111870.0,1.68622193]
[1756351406779,0.011,111880.0,111870.0,1.68622193]
[1756351407577,0.04092,111880.0,111870.0,1.68622193]
[1756351407876,0.04092,111880.0,111870.0,1.95182193]
[1756351412977,0.04092,111880.0,111870.0,1.11787962]
[1756351413184,0.04092,111880.0,111870.0,1.94263962]
[1756351414787,0.04092,111880.0,111870.0,1.95163444]
[1756351417884,0.04092,111880.0,111870.0,1.94251962]
[1756351418287,0.04092,111880.0,111870.0,1.11787962]
[1756351418490,0.04092,111880.0,111870.0,1.94247962]
[1756351419792,0.04092,111880.0,111870.0,1.11787962]
[1756351419989,0.04092,111880.0,111870.0,1.56247962]
[1756351420180,0.09884,111880.0,111870.0,1.92247962]
[1756351420585,0.07391,111880.0,111870.0,1.92247962]
[1756351422092,0.04092,111880.0,111870.0,1.92247962]
[1756351422486,0.15405,111880.0,111870.0,1.56398962]
[1756351422681,0.15405,111880.0,111870.0,1.90398962]
[1756351423383,0.15405,111880.0,111870.0,0.73946962]
[1756351423584,0.15405,111880.0,111870.0,1.92394962]
[1756351425491,0.15405,111880.0,111870.0,1.65834962]
[1756351429096,0.04092,111880.0,111870.0,1.65834962]
[1756351430695,0.011,111880.0,111870.0,1.65834962]
[1756351431102,0.011,111880.0,111870.0,2.03824704]
[1756351431287,0.04042,111880.0,111870.0,2.03824704]
[1756351431491,0.04042,111880.0,111870.0,1.92394962]
[1756351432198,0.04042,111880.0,111870.0,2.03656618]
[1756351433095,0.04042,111880.0,111870.0,1.21208618]
[1756351433297,0.04042,111880.0,111870.0,2.03636618]
[1756351436003,0.04042,111880.0,111870.0,1.21208618]
[1756351436202,0.04042,111880.0,111870.0,2.03632618]
[1756351437504,0.04042,111880.0,111870.0,2.4162236]
[1756351439006,0.04042,111880.0,111870.0,2.03632618]
[1756351439200,0.04042,111880.0,111870.0,1.92370962]
[1756351440408,0.04042,111880.0,111870.0,1.09946962]
[1756351440611,0.04042,111880.0,111870.0,1.92366962]
[1756351443511,0.04042,111880.0,111870.0,0.73946962]
[1756351443708,0.15848,111880.0,111870.0,1.56258962]
[1756351444010,0.40848,111880.0,111870.0,0.73687942]
[1756351444213,0.40848,111880.0,111870.0,1.09172]
[1756351444411,0.40848,111880.0,111870.0,1.56099942]
[1756351444810,0.40848,111880.0,111870.0,1.47161742]
[1756351445713,0.40848,111880.0,111870.0,0.2676]
[1756351445912,0.40848,111880.0,111870.0,0.73687942]
[1756351446114,1.12837742,111880.0,111870.0,0.2676]
[1756351446613,1.12837742,111880.0,111870.0,0.2326]
[1756351447411,1.12837742,111880.0,111870.0,0.0176]
[1756351452314,1.95249742,111880.0,111870.0,0.0176]
[1756351459808,1.12837742,111880.0,111870.0,0.0176]
[1756351460018,1.95241742,111880.0,111870.0,0.0176]
[1756351460218,1.57256,111880.0,111870.0,0.07322]
[1756351460418,1.95245742,111880.0,111870.0,0.16124]
[1756351460814,0.15848,111880.0,111870.0,0.12705]
[1756351461022,0.94778,111880.0,111870.0,0.54113742]
[1756351462018,0.94778,111880.0,111870.0,0.2506222]
[1756351462019,0.12374,111880.0,111870.0,0.2506222]
[1756351462223,0.94778,111880.0,111870.0,0.2506222]
[1756351462624,0.94778,111880.0,111870.0,0.16124]
[1756351463023,0.96778,111880.0,111870.0,0.16124]
[1756351467927,0.14374,111880.0,111870.0,0.16124]
[1756351468129,0.96774,111880.0,111870.0,0.16124]
[1756351470731,0.96766,111880.0,111870.0,0.16124]
[1756351475135,0.14374,111880.0,111870.0,0.16124]
[1756351475334,1.26758,111880.0,111870.0,0.16124]
[1756351477036,0.14374,111880.0,111870.0,0.16124]
[1756351477237,1.30758,111880.0,111870.0,0.16124]
[1756351478134,0.12374,111880.0,111870.0,0.63051962]
[1756351478432,0.94754,111880.0,111870.0,0.63051962]
[1756351479845,0.12374,111880.0,111870.0,0.63051962]
[1756351480046,0.92483,111880.0,111870.0,0.63051962]
[1756351480439,0.92483,111880.0,111870.0,0.2506222]
[1756351480641,0.92483,111880.0,111870.0,0.63051962]
[1756351481349,0.10103,111880.0,111870.0,0.63051962]
[1756351487352,0.10103,111880.0,111870.0,0.67797374]
[1756351489255,0.04715,111880.0,111870.0,1.10532528]
[1756351489553,0.0273,111880.0,111870.0,1.10532528]
[1756351489953,0.011,111880.0,111870.0,1.70532528]
[1756351490348,0.07347118,111890.0,111880.0,0.1115642]
[1756351490549,0.07327118,111890.0,111880.0,0.92230574]
[1756351490746,0.026973,111900.0,111890.0,0.1115562]
[1756351490948,0.026773,111900.0,111890.0,0.57229774]
[1756351492454,0.028773,111900.0,111890.0,0.57229774]
[1756351493253,0.037773,111900.0,111890.0,0.57229774]
[1756351493452,0.037773,111900.0,111890.0,0.52464729]
[1756351495352,0.11038056,111900.0,111890.0,0.52464729]
[1756351495559,0.037773,111900.0,111890.0,0.52464729]
[1756351497156,0.011,111900.0,111890.0,1.13464729]
[1756351497354,0.0002,111910.0,111900.0,0.1449381]
[1756351497660,0.04544,111920.0,111910.0,0.05558]
[1756351497860,0.07208701,111920.0,111910.0,0.43528109]
[1756351499254,0.07908701,111920.0,111910.0,0.43528109]
[1756351499459,0.1540312,111920.0,111910.0,0.43528109]
[1756351502362,0.1540312,111920.0,111910.0,0.52463109]
[1756351503363,0.1540312,111920.0,111910.0,0.43528109]
[1756351504163,0.1740312,111920.0,111910.0,0.43528109]
[1756351505161,0.4340312,111920.0,111910.0,0.05558]
[1756351505366,0.4340312,111920.0,111910.0,0.43528109]
[1756351505566,0.4440312,111920.0,111910.0,0.43528109]
[1756351505759,0.1740312,111920.0,111910.0,0.43528109]
[1756351507264,0.1740312,111920.0,111910.0,0.05558]
[1756351507565,0.2124512,111920.0,111910.0,0.09463]
[1756351508162,0.1924512,111920.0,111910.0,0.09463]
[1756351508361,0.5024512,111920.0,111910.0,0.09463]
[1756351508665,0.5502312,111920.0,111910.0,0.14215]
[1756351509059,0.2402312,111920.0,111910.0,0.14215]
[1756351509261,0.2602312,111920.0,111910.0,0.14215]
[1756351509869,0.2602312,111920.0,111910.0,0.52185109]
[1756351510360,0.5302312,111920.0,111910.0,0.52185109]
[1756351510572,0.2602312,111920.0,111910.0,0.52185109]
[1756351513569,0.2182312,111920.0,111910.0,0.61120109]
[1756351513763,1.0631112,111920.0,111910.0,0.61120109]
[1756351515064,1.08810013,111920.0,111910.0,0.61120109]
[1756351515363,1.08810013,111920.0,111910.0,0.65856881]
[1756351516158,0.26522013,111920.0,111910.0,0.65856881]
[1756351516362,1.08798013,111920.0,111910.0,0.65856881]
[1756351516863,0.2182312,111920.0,111910.0,0.65856881]
[1756351517061,1.0629912,111920.0,111910.0,0.65856881]
[1756351519271,1.08801854,111920.0,111910.0,0.65856881]
[1756351520170,1.0629912,111920.0,111910.0,0.65856881]
[1756351520373,1.08802621,111920.0,111910.0,0.65856881]
[1756351522877,1.0628712,111920.0,111910.0,0.65856881]
[1756351523969,0.1246112,111920.0,111910.0,1.21856881]
[1756351524374,0.1246112,111920.0,111910.0,0.90856881]
[1756351525182,0.1216112,111920.0,111910.0,0.90856881]
[1756351525372,0.1067912,111920.0,111910.0,0.90856881]
[1756351526375,0.0997912,111920.0,111910.0,0.90856881]
[1756351526677,0.1057912,111920.0,111910.0,0.90856881]
[1756351527081,0.1217512,111920.0,111910.0,0.4815]
[1756351527373,0.1217512,111920.0,111910.0,0.90856881]
[1756351528272,0.1689112,111920.0,111910.0,0.90856881]
[1756351529180,0.2369712,111920.0,111910.0,0.4815]
[1756351529476,0.26199807,111920.0,111910.0,0.90856881]
[1756351531478,0.26199807,111920.0,111910.0,0.65856881]
[1756351534480,0.28199807,111920.0,111910.0,0.65856881]
[1756351534778,0.28199807,111920.0,111910.0,0.56921881]
[1756351535476,0.26199807,111920.0,111910.0,0.56921881]
[1756351535679,0.99906688,111920.0,111910.0,0.56921881]
[1756351535978,0.70906688,111920.0,111910.0,0.56921881]
[1756351536178,0.70906688,111920.0,111910.0,0.14215]
[1756351536372,1.53138688,111920.0,111910.0,0.54531881]
[1756351536678,1.53138688,111920.0,111910.0,0.56804881]
[1756351537276,1.10431807,111920.0,111910.0,0.14098]
[1756351537777,1.08431807,111920.0,111910.0,0.14098]
[1756351538079,1.42431807,111920.0,111910.0,0.11825]
[1756351539285,1.3992912,111920.0,111910.0,0.11825]
[1756351539471,0.022,111910.0,111900.0,0.44974979]
[1756351539678,0.15118,111910.0,111900.0,0.54088979]
[1756351539878,0.15118,111910.0,111900.0,0.63024779]
[1756351540679,0.15218,111910.0,111900.0,0.63024779]
[1756351541084,0.15218,111910.0,111900.0,0.25057597]
[1756351541283,0.15218,111910.0,111900.0,0.63024779]
[1756351541584,0.15618,111910.0,111900.0,0.63024779]
[1756351543383,0.15618,111910.0,111900.0,0.54088979]
[1756351543681,0.15618,111910.0,111900.0,0.25057597]
[1756351543886,0.15618,111910.0,111900.0,0.230558]
[1756351544290,0.15618,111910.0,111900.0,0.52087182]
[1756351544488,0.45618,111910.0,111900.0,0.61022982]
[1756351544687,0.45618,111910.0,111900.0,0.52087182]
[1756351547582,0.13618,111910.0,111900.0,0.61022982]
[1756351550588,0.06812,111910.0,111900.0,0.61022982]
[1756351550789,0.005,111910.0,111900.0,0.61022982]
[1756351550991,0.0989912,111920.0,111910.0,0.23466]
[1756351551290,0.0987912,111920.0,111910.0,0.61433182]
[1756351552386,0.0987912,111920.0,111910.0,2.01637182]
[1756351552585,0.0987912,111920.0,111910.0,2.03599034]
[1756351552993,0.0997912,111920.0,111910.0,2.03599034]
[1756351553186,0.0997912,111920.0,111910.0,1.78599034]
[1756351553691,0.1037912,111920.0,111910.0,1.07631852]
[1756351553990,0.1037912,111920.0,111910.0,1.80599034]
[1756351554690,0.1037912,111920.0,111910.0,2.05599034]
[1756351554991,0.03184701,111920.0,111910.0,2.05599034]
[1756351559303,0.03184701,111920.0,111910.0,2.1032621]
[1756351560500,0.03184701,111920.0,111910.0,2.1331421]
[1756351563606,0.08868952,111930.0,111920.0,0.2346523]
[1756351563807,0.08868952,111930.0,111920.0,1.44853946]
[1756351563808,0.01812401,111930.0,111920.0,1.44853946]
[1756351565307,0.01812401,111930.0,111920.0,1.35346936]
[1756351566214,0.02112401,111930.0,111920.0,1.35346936]
[1756351566615,0.01812401,111930.0,111920.0,1.35346936]
[1756351566813,0.02012401,111930.0,111920.0,1.35346936]
[1756351570815,0.02012401,111930.0,111920.0,2.17514936]
[1756351576016,0.002,111930.0,111920.0,2.42514936]
[1756351576211,0.15898329,111970.0,111960.0,0.14412]
[1756351576516,0.23891359,111970.0,111960.0,0.52352853]
[1756351577418,0.23891359,111970.0,111960.0,0.14412]
[1756351578921,0.54891359,111970.0,111960.0,0.14412]
[1756351579308,0.57489723,111970.0,111960.0,0.14412]
[1756351579607,0.26489723,111970.0,111960.0,0.14412]
[1756351579809,0.28489723,111970.0,111960.0,0.14412]
[1756351580018,0.64489723,111970.0,111960.0,0.14412]
[1756351582821,0.64489723,111970.0,111960.0,0.52352853]
[1756351583122,0.64489723,111970.0,111960.0,0.03894]
[1756351583422,0.64489723,111970.0,111960.0,0.10163]
[1756351583616,0.64489723,111970.0,111960.0,0.14412]
[1756351585828,1.18865576,111970.0,111950.0,0.43168853]
[1756351586025,0.14087,111960.0,111950.0,0.52352853]
[1756351586323,0.16585364,111960.0,111950.0,0.52352853]
[1756351586918,0.18585364,111960.0,111950.0,0.52352853]
[1756351587426,0.18585364,111960.0,111950.0,0.61284673]
[1756351588720,0.16585364,111960.0,111950.0,0.61284673]
[1756351589320,0.14087,111960.0,111950.0,0.61284673]
[1756351593215,0.16587907,111960.0,111950.0,0.61284673]
[1756351595334,0.16587907,111960.0,111950.0,0.66018478]
[1756351608032,0.16587907,111960.0,111950.0,0.57086658]
[1756351608527,0.16587907,111960.0,111950.0,0.66018478]
[1756351613932,0.16587907,111960.0,111950.0,0.57086658]
[1756351614126,0.16587907,111960.0,111950.0,0.66018478]
[1756351615936,0.16587907,111960.0,111950.0,0.57086658]
[1756351616431,0.89262565,111960.0,111950.0,0.57086658]
[1756351616632,0.59262565,111960.0,111950.0,0.56955658]
[1756351616837,1.22262565,111960.0,111950.0,0.11048]
[1756351617137,1.22262565,111960.0,111950.0,0.03894]
[1756351617539,1.22262565,111960.0,111950.0,0.0671]
[1756351617728,1.22262565,111960.0,111950.0,0.46568658]
[1756351618431,1.22262565,111960.0,111950.0,0.54517658]
[1756351618737,2.04338565,111960.0,111950.0,0.56935658]
[1756351619440,1.22262565,111960.0,111950.0,0.56935658]
[1756351619740,2.04334565,111960.0,111950.0,0.56935658]
[1756351621142,2.04334565,111960.0,111950.0,0.14261]
[1756351621332,2.04334565,111960.0,111950.0,0.56935658]
[1756351622642,2.04334565,111960.0,111950.0,0.54517658]
[1756351622841,0.86262565,111960.0,111950.0,0.54517658]
[1756351623141,2.01326565,111960.0,111950.0,0.54517658]
[1756351623440,2.01326565,111960.0,111950.0,0.56935658]
[1756351623647,1.76326565,111960.0,111950.0,0.01594]
[1756351623835,0.14333,111950.0,111940.0,0.03633992]
[1756351624031,0.90508565,111950.0,111940.0,0.02001992]
[1756351625035,0.90508565,111950.0,111940.0,0.02101992]
[1756351625442,0.90508565,111950.0,111940.0,0.02001992]
[1756351625648,0.90608565,111950.0,111940.0,0.02001992]
[1756351628044,1.15608565,111950.0,111940.0,0.02001992]
[1756351629742,1.97668565,111950.0,111940.0,0.02001992]
[1756351630138,0.72933907,111950.0,111940.0,0.02001992]
[1756351630338,1.97664565,111950.0,111940.0,0.5890365]
[1756351630543,1.95163658,111950.0,111940.0,0.5890365]
[1756351630939,0.70433,111950.0,111940.0,0.5890365]
[1756351631140,1.95163658,111950.0,111940.0,0.5890365]
[1756351632145,1.13107658,111950.0,111940.0,0.5890365]
[1756351632345,1.95163658,111950.0,111940.0,0.5890365]
[1756351633445,1.52489,111950.0,111940.0,0.16228992]
[1756351634145,1.52489,111950.0,111940.0,0.5094341]
[1756351634146,0.14433,111950.0,111940.0,0.5094341]
[1756351634446,1.30489,111950.0,111940.0,0.5417641]
[1756351634639,0.14433,111950.0,111940.0,0.5417641]
[1756351634847,0.001,111950.0,111940.0,0.8810902]
[1756351635742,0.03887,111950.0,111940.0,0.8810902]
[1756351635948,0.001,111950.0,111940.0,0.8810902]
[1756351637341,0.001,111950.0,111940.0,1.2310902]
[1756351638245,0.001,111950.0,111940.0,0.8810902]
[1756351642751,0.001,111950.0,111940.0,1.1910902]
[1756351644150,0.0002,111960.0,111950.0,0.2342185]
[1756351644449,0.21737359,111970.0,111960.0,0.2342106]
[1756351644749,0.23982359,111970.0,111960.0,0.61368478]
[1756351645148,0.20570359,111970.0,111960.0,0.61368478]
[1756351645348,0.11411359,111970.0,111960.0,0.98368478]
[1756351645952,0.09904359,111970.0,111960.0,0.98368478]
[1756351646155,0.09904359,111970.0,111960.0,0.61368478]
[1756351647656,0.11511359,111970.0,111960.0,0.61368478]
[1756351647952,0.09804359,111970.0,111960.0,0.97368478]
[1756351648147,0.09804359,111970.0,111960.0,1.35315896]
[1756351648453,0.09804359,111970.0,111960.0,0.97368478]
[1756351648653,0.0799303,111970.0,111960.0,1.37332644]
[1756351648848,0.12337,111980.0,111970.0,0.1465123]
[1756351649057,0.14178,111980.0,111970.0,0.61367648]
[1756351650155,0.47178,111980.0,111970.0,0.61367648]
[1756351650355,0.48080546,111980.0,111970.0,0.61367648]
[1756351651053,0.39661546,111980.0,111970.0,0.61367648]
[1756351651260,0.37800546,111980.0,111970.0,0.61367648]
[1756351651652,0.42403546,111980.0,111970.0,0.61367648]
[1756351651858,0.48080546,111980.0,111970.0,0.61367648]
[1756351652765,0.15080546,111980.0,111970.0,0.61367648]
[1756351652958,0.22364689,111980.0,111970.0,0.61367648]
[1756351654664,0.55364689,111980.0,111970.0,0.61367648]
[1756351655365,0.55364689,111980.0,111970.0,0.52437418]
[1756351657362,0.55364689,111980.0,111970.0,0.61367648]
[1756351659368,0.55364689,111980.0,111970.0,0.1449]
[1756351659573,0.55364689,111980.0,111970.0,0.52437418]
[1756351664982,0.55364689,111980.0,111970.0,0.61367648]
[1756351666982,0.55364689,111980.0,111970.0,0.2342023]
[1756351667185,0.55364689,111980.0,111970.0,0.61367648]
[1756351668887,0.55364689,111980.0,111970.0,0.52437418]
[1756351669183,0.57859279,111980.0,111970.0,0.52437418]
[1756351672082,0.24859279,111980.0,111970.0,0.61367648]
[1756351673682,0.24859279,111980.0,111970.0,0.52437418]
[1756351674085,0.61859279,111980.0,111970.0,0.52437418]